[Event "Titled Tuesday Blitz January 17 Early 2023"]
[White "Sychev, Klementy"]
[Black "Erzhanov, Arman"]
[WhiteFideId "4114060"]
[BlackFideId "4138821"]
[WhiteElo "2547"]
[BlackElo "2228"]
[Result "1-0"]
[Round "09"]
[TimeControl "180+2"]
[Date "2023.01.17"]
[WhiteClock "0:00:16"]
[BlackClock "0:00:03"]

1. e4 {[%clk 0:02:59]}  c5 {[%clk 0:02:58]} 2. Nf3 {[%clk 0:02:54]}  Nc6 {[%clk 0:02:57]} 3. d4 {[%clk 0:02:54]}  cxd4 {[%clk 0:02:58]} 4. Nxd4 {[%clk 0:02:54]}  Nf6 {[%clk 0:02:58]} 5. Nc3 {[%clk 0:02:54]}  e5 {[%clk 0:02:58]} 6. Ndb5 {[%clk 0:02:55]}  d6 {[%clk 0:02:58]} 7. Bg5 {[%clk 0:02:55]}  a6 {[%clk 0:02:57]} 8. Na3 {[%clk 0:02:55]}  b5 {[%clk 0:02:58]} 9. Bxf6 {[%clk 0:02:54]}  gxf6 {[%clk 0:02:57]} 10. Nd5 {[%clk 0:02:55]}  Bg7 {[%clk 0:02:58]} 11. g3 {[%clk 0:02:55]}  f5 {[%clk 0:02:45]} 12. exf5 {[%clk 0:02:55]}  Bxf5 {[%clk 0:02:41]} 13. Bg2 {[%clk 0:02:55]}  O-O {[%clk 0:02:30]} 14. Ne3 {[%clk 0:02:54]}  Ne7 {[%clk 0:02:25]} 15. Nxf5 {[%clk 0:02:19]}  Nxf5 {[%clk 0:02:25]} 16. Bxa8 {[%clk 0:02:06]}  Qxa8 {[%clk 0:02:25]} 17. O-O {[%clk 0:02:06]}  Nd4 {[%clk 0:02:21]} 18. f3 {[%clk 0:02:01]}  e4 {[%clk 0:02:17]} 19. fxe4 {[%clk 0:01:39]}  Qxe4 {[%clk 0:02:18]} 20. Qd3 {[%clk 0:01:39]}  Ne2+ {[%clk 0:01:27]} 21. Kf2 {[%clk 0:01:38]}  Bd4+ {[%clk 0:01:17]} 22. Ke1 {[%clk 0:01:38]}  Re8 {[%clk 0:01:00]} 23. Qxe4 {[%clk 0:01:11]}  Rxe4 {[%clk 0:01:00]} 24. Kd2 {[%clk 0:01:10]}  Bxb2 {[%clk 0:00:54]} 25. Rae1 {[%clk 0:01:09]}  Bxa3 {[%clk 0:00:20]} 26. Rxe2 {[%clk 0:01:09]}  Rd4+ {[%clk 0:00:15]} 27. Kc3 {[%clk 0:01:01]}  Bc5 {[%clk 0:00:15]} 28. Re8+ {[%clk 0:00:58]}  Kg7 {[%clk 0:00:15]} 29. Re7 {[%clk 0:00:59]}  Rc4+ {[%clk 0:00:15]} 30. Kd3 {[%clk 0:00:47]}  Rd4+ {[%clk 0:00:15]} 31. Ke2 {[%clk 0:00:47]}  Bb4 {[%clk 0:00:12]} 32. Rexf7+ {[%clk 0:00:21]}  Kg6 {[%clk 0:00:12]} 33. R1f6+ {[%clk 0:00:20]}  Kg5 {[%clk 0:00:13]} 34. Kf3 {[%clk 0:00:18]}  Bc3 {[%clk 0:00:02]} 35. h4+ {[%clk 0:00:17]}  Rxh4 {[%clk 0:00:03]} 36. gxh4+ {[%clk 0:00:16]} 1-0


[Site "https://www.chess.com"]

[Event "Titled Tuesday Blitz January 17 Early 2023"]
[White "Piesik, Piotr"]
[Black "Harsh Suresh"]
[WhiteFideId "1136194"]
[BlackFideId "45018464"]
[WhiteElo "2426"]
[BlackElo "2298"]
[Result "0-1"]
[Round "09"]
[TimeControl "180+2"]
[Date "2023.01.17"]
[WhiteClock "0:01:05"]
[BlackClock "0:01:24"]

1. Nf3 {[%clk 0:02:00]}  d5 {[%clk 0:02:58]} 2. g3 {[%clk 0:01:59]}  g6 {[%clk 0:02:58]} 3. Bg2 {[%clk 0:02:00]}  Bg7 {[%clk 0:02:59]} 4. d4 {[%clk 0:02:00]}  c5 {[%clk 0:02:58]} 5. c3 {[%clk 0:01:58]}  cxd4 {[%clk 0:02:57]} 6. cxd4 {[%clk 0:01:58]}  Nc6 {[%clk 0:02:57]} 7. O-O {[%clk 0:01:59]}  Bg4 {[%clk 0:02:54]} 8. Nc3 {[%clk 0:01:58]}  Bxf3 {[%clk 0:02:52]} 9. Bxf3 {[%clk 0:01:58]}  e6 {[%clk 0:02:52]} 10. e3 {[%clk 0:01:58]}  Nge7 {[%clk 0:02:52]} 11. a3 {[%clk 0:01:52]}  O-O {[%clk 0:02:52]} 12. b4 {[%clk 0:01:52]}  Rc8 {[%clk 0:02:49]} 13. Na4 {[%clk 0:01:52]}  b6 {[%clk 0:02:46]} 14. Be2 {[%clk 0:01:51]}  Nf5 {[%clk 0:02:45]} 15. Bd2 {[%clk 0:01:50]}  e5 {[%clk 0:02:36]} 16. dxe5 {[%clk 0:01:48]}  Nxe5 {[%clk 0:02:36]} 17. Rc1 {[%clk 0:01:48]}  d4 {[%clk 0:02:31]} 18. Rxc8 {[%clk 0:01:45]}  Qxc8 {[%clk 0:02:32]} 19. e4 {[%clk 0:01:42]}  d3 {[%clk 0:02:15]} 20. exf5 {[%clk 0:01:32]}  dxe2 {[%clk 0:02:15]} 21. Qxe2 {[%clk 0:01:33]}  Qxf5 {[%clk 0:01:49]} 22. Bf4 {[%clk 0:01:32]}  Nc6 {[%clk 0:01:48]} 23. Be3 {[%clk 0:01:26]}  Re8 {[%clk 0:01:46]} 24. Rd1 {[%clk 0:01:18]}  Nd4 {[%clk 0:01:42]} 25. Qd3 {[%clk 0:01:17]}  Nf3+ {[%clk 0:01:34]} 26. Kf1 {[%clk 0:01:13]}  Qh3+ {[%clk 0:01:32]} 27. Ke2 {[%clk 0:01:13]}  Qh5 {[%clk 0:01:29]} 28. Qd5 {[%clk 0:01:05]}  Nd4+ {[%clk 0:01:24]} 0-1


[Site "https://www.chess.com"]

[Event "Titled Tuesday Blitz January 17 Early 2023"]
[White "Royal, Shreyas"]
[Black "Harsha Bharathakoti"]
[WhiteFideId "448869"]
[BlackFideId "5078776"]
[WhiteElo "2438"]
[BlackElo "2602"]
[Result "0-1"]
[Round "09"]
[TimeControl "180+2"]
[Date "2023.01.17"]
[WhiteClock "0:00:16"]
[BlackClock "0:00:11"]

1. d4 {[%clk 0:03:00]}  Nf6 {[%clk 0:02:59]} 2. c4 {[%clk 0:03:01]}  c5 {[%clk 0:03:00]} 3. d5 {[%clk 0:03:01]}  e6 {[%clk 0:03:01]} 4. Nc3 {[%clk 0:03:00]}  exd5 {[%clk 0:03:01]} 5. cxd5 {[%clk 0:03:01]}  d6 {[%clk 0:03:02]} 6. Nf3 {[%clk 0:03:01]}  g6 {[%clk 0:03:03]} 7. Bf4 {[%clk 0:03:00]}  a6 {[%clk 0:03:02]} 8. a4 {[%clk 0:02:59]}  Bg7 {[%clk 0:03:02]} 9. h3 {[%clk 0:02:58]}  O-O {[%clk 0:03:02]} 10. e3 {[%clk 0:02:59]}  Ne8 {[%clk 0:03:00]} 11. Be2 {[%clk 0:02:47]}  Nd7 {[%clk 0:02:58]} 12. O-O {[%clk 0:02:48]}  Ne5 {[%clk 0:02:57]} 13. Re1 {[%clk 0:02:47]}  Rb8 {[%clk 0:02:53]} 14. a5 {[%clk 0:02:37]}  Qe7 {[%clk 0:02:48]} 15. Bh2 {[%clk 0:02:26]}  Nxf3+ {[%clk 0:02:39]} 16. Bxf3 {[%clk 0:02:26]}  b5 {[%clk 0:02:34]} 17. axb6 {[%clk 0:02:25]}  Rxb6 {[%clk 0:02:34]} 18. Qd2 {[%clk 0:02:24]}  Bd7 {[%clk 0:02:33]} 19. Ra5 {[%clk 0:02:11]}  Nc7 {[%clk 0:02:28]} 20. Rea1 {[%clk 0:02:02]}  Be5 {[%clk 0:02:21]} 21. Bxe5 {[%clk 0:02:00]}  Qxe5 {[%clk 0:02:21]} 22. Be2 {[%clk 0:02:01]}  Rfb8 {[%clk 0:02:21]} 23. R1a2 {[%clk 0:01:58]}  Bb5 {[%clk 0:02:11]} 24. f4 {[%clk 0:01:48]}  Qe8 {[%clk 0:02:07]} 25. e4 {[%clk 0:01:43]}  Bxe2 {[%clk 0:02:02]} 26. Qxe2 {[%clk 0:01:44]}  Nb5 {[%clk 0:02:02]} 27. Rxa6 {[%clk 0:01:43]}  Nd4 {[%clk 0:01:55]} 28. Qf2 {[%clk 0:01:38]}  Kg7 {[%clk 0:01:37]} 29. Ra7 {[%clk 0:01:32]}  R8b7 {[%clk 0:01:37]} 30. Ra8 {[%clk 0:01:31]}  Qe7 {[%clk 0:01:38]} 31. Kh2 {[%clk 0:01:09]}  Qf6 {[%clk 0:01:37]} 32. Qd2 {[%clk 0:01:04]}  Rb3 {[%clk 0:01:31]} 33. R8a3 {[%clk 0:00:58]}  R3b4 {[%clk 0:01:16]} 34. Ra4 {[%clk 0:00:55]}  Rb3 {[%clk 0:01:14]} 35. R4a3 {[%clk 0:00:55]}  g5 {[%clk 0:00:53]} 36. e5 {[%clk 0:00:50]}  dxe5 {[%clk 0:00:42]} 37. fxg5 {[%clk 0:00:50]}  Qf5 {[%clk 0:00:30]} 38. Rxb3 {[%clk 0:00:45]}  Rxb3 {[%clk 0:00:31]} 39. d6 {[%clk 0:00:42]}  e4 {[%clk 0:00:31]} 40. Qe3 {[%clk 0:00:36]}  Qe5+ {[%clk 0:00:28]} 41. Qg3 {[%clk 0:00:36]}  Qxg3+ {[%clk 0:00:18]} 42. Kxg3 {[%clk 0:00:37]}  Nf5+ {[%clk 0:00:19]} 43. Kf4 {[%clk 0:00:35]}  Nxd6 {[%clk 0:00:20]} 44. Ke5 {[%clk 0:00:32]}  Nc4+ {[%clk 0:00:17]} 45. Kf5 {[%clk 0:00:32]}  e3 {[%clk 0:00:15]} 46. Ke4 {[%clk 0:00:24]}  Kg6 {[%clk 0:00:13]} 47. h4 {[%clk 0:00:23]}  Kh5 {[%clk 0:00:12]} 48. Kd3 {[%clk 0:00:20]}  Nxb2+ {[%clk 0:00:12]} 49. Kc2 {[%clk 0:00:21]}  Rxc3+ {[%clk 0:00:09]} 50. Kxc3 {[%clk 0:00:20]}  e2 {[%clk 0:00:10]} 51. Kd2 {[%clk 0:00:20]}  Nd3 {[%clk 0:00:09]} 52. g4+ {[%clk 0:00:20]}  Kxh4 {[%clk 0:00:09]} 53. Ra1 {[%clk 0:00:16]}  e1=Q+ {[%clk 0:00:10]} 54. Rxe1 {[%clk 0:00:16]}  Nxe1 {[%clk 0:00:10]} 55. g6 {[%clk 0:00:16]}  hxg6 {[%clk 0:00:11]} 0-1


[Site "https://www.chess.com"]

[Event "Titled Tuesday Blitz January 17 Early 2023"]
[White "Andreev, Eduard"]
[Black "Borges Feria, Yasel"]
[WhiteFideId "14103400"]
[BlackFideId "3504921"]
[WhiteElo "2413"]
[BlackElo "2439"]
[Result "1/2-1/2"]
[Round "09"]
[TimeControl "180+2"]
[Date "2023.01.17"]
[WhiteClock "0:00:18"]
[BlackClock "0:00:18"]

1. e4 {[%clk 0:03:00]}  c6 {[%clk 0:02:59]} 2. d4 {[%clk 0:02:59]}  d5 {[%clk 0:03:00]} 3. Nd2 {[%clk 0:02:59]}  dxe4 {[%clk 0:02:59]} 4. Nxe4 {[%clk 0:03:00]}  Bf5 {[%clk 0:02:59]} 5. Ng3 {[%clk 0:02:59]}  Bg6 {[%clk 0:03:00]} 6. Nf3 {[%clk 0:02:58]}  Nd7 {[%clk 0:03:00]} 7. h4 {[%clk 0:02:58]}  h6 {[%clk 0:03:00]} 8. h5 {[%clk 0:02:58]}  Bh7 {[%clk 0:03:00]} 9. Bd3 {[%clk 0:02:56]}  Bxd3 {[%clk 0:03:01]} 10. Qxd3 {[%clk 0:02:56]}  e6 {[%clk 0:03:02]} 11. Bf4 {[%clk 0:02:56]}  Qa5+ {[%clk 0:03:01]} 12. Bd2 {[%clk 0:02:56]}  Qb6 {[%clk 0:03:01]} 13. O-O-O {[%clk 0:02:56]}  Ngf6 {[%clk 0:03:01]} 14. c4 {[%clk 0:02:48]}  Rd8 {[%clk 0:02:55]} 15. Qe2 {[%clk 0:02:48]}  Bb4 {[%clk 0:02:49]} 16. Bxb4 {[%clk 0:02:35]}  Qxb4 {[%clk 0:02:50]} 17. Ne5 {[%clk 0:02:35]}  O-O {[%clk 0:02:41]} 18. Ne4 {[%clk 0:02:27]}  Nxe4 {[%clk 0:01:56]} 19. Qxe4 {[%clk 0:02:25]}  f6 {[%clk 0:01:34]} 20. Ng6 {[%clk 0:01:35]}  Qxc4+ {[%clk 0:01:33]} 21. Kb1 {[%clk 0:01:35]}  Rfe8 {[%clk 0:01:32]} 22. Rhe1 {[%clk 0:01:28]}  Qd5 {[%clk 0:01:24]} 23. Qg4 {[%clk 0:01:22]}  Nf8 {[%clk 0:01:18]} 24. Nf4 {[%clk 0:01:19]}  Qf5+ {[%clk 0:01:11]} 25. Qxf5 {[%clk 0:01:18]}  exf5 {[%clk 0:01:12]} 26. Rxe8 {[%clk 0:01:17]}  Rxe8 {[%clk 0:01:13]} 27. f3 {[%clk 0:01:17]}  Kf7 {[%clk 0:01:09]} 28. Kc2 {[%clk 0:01:16]}  Ne6 {[%clk 0:01:08]} 29. Nxe6 {[%clk 0:01:04]}  Rxe6 {[%clk 0:01:09]} 30. Kd3 {[%clk 0:01:04]}  f4 {[%clk 0:00:58]} 31. Rh1 {[%clk 0:00:59]}  Re3+ {[%clk 0:00:51]} 32. Kd2 {[%clk 0:00:59]}  Ke6 {[%clk 0:00:44]} 33. Rh4 {[%clk 0:00:57]}  Kf5 {[%clk 0:00:36]} 34. Rg4 {[%clk 0:00:56]}  Re7 {[%clk 0:00:37]} 35. Kc3 {[%clk 0:00:56]}  Rd7 {[%clk 0:00:37]} 36. Kc4 {[%clk 0:00:55]}  Re7 {[%clk 0:00:38]} 37. Kc3 {[%clk 0:00:53]}  Rc7 {[%clk 0:00:36]} 38. Kc4 {[%clk 0:00:53]}  Rd7 {[%clk 0:00:37]} 39. b4 {[%clk 0:00:52]}  Ke6 {[%clk 0:00:26]} 40. Rxf4 {[%clk 0:00:49]}  Rd5 {[%clk 0:00:27]} 41. g4 {[%clk 0:00:43]}  a5 {[%clk 0:00:25]} 42. a3 {[%clk 0:00:40]}  axb4 {[%clk 0:00:25]} 43. axb4 {[%clk 0:00:41]}  b5+ {[%clk 0:00:26]} 44. Kc3 {[%clk 0:00:41]}  f5 {[%clk 0:00:25]} 45. Kd3 {[%clk 0:00:38]}  Kf6 {[%clk 0:00:20]} 46. gxf5 {[%clk 0:00:24]}  Rxf5 {[%clk 0:00:21]} 47. Rg4 {[%clk 0:00:24]}  Rxf3+ {[%clk 0:00:21]} 48. Ke4 {[%clk 0:00:24]}  Rc3 {[%clk 0:00:21]} 49. Rg6+ {[%clk 0:00:23]}  Kf7 {[%clk 0:00:22]} 50. Rd6 {[%clk 0:00:20]}  Rc4 {[%clk 0:00:21]} 51. Ke5 {[%clk 0:00:19]}  Ke7 {[%clk 0:00:20]} 52. Rg6 {[%clk 0:00:19]}  Kf7 {[%clk 0:00:21]} 53. Rd6 {[%clk 0:00:18]}  Ke7 {[%clk 0:00:21]} 54. Rg6 {[%clk 0:00:19]}  Kf7 {[%clk 0:00:18]} 55. Rd6 {[%clk 0:00:18]} 1/2-1/2


[Site "https://www.chess.com"]

[Event "Titled Tuesday Blitz January 17 Early 2023"]
[White "Mikhailovsky, Vladimir"]
[Black "Divya Deshmukh"]
[WhiteFideId "34105414"]
[BlackFideId "35006916"]
[WhiteElo "2215"]
[BlackElo "2372"]
[Result "1-0"]
[Round "09"]
[TimeControl "180+2"]
[Date "2023.01.17"]
[WhiteClock "0:00:56"]
[BlackClock "0:00:18"]

1. e4 {[%clk 0:02:40]}  c5 {[%clk 0:02:56]} 2. c3 {[%clk 0:02:40]}  Nf6 {[%clk 0:02:55]} 3. e5 {[%clk 0:02:40]}  Nd5 {[%clk 0:02:56]} 4. Nf3 {[%clk 0:02:41]}  Nc6 {[%clk 0:02:55]} 5. Bc4 {[%clk 0:02:41]}  Nb6 {[%clk 0:02:53]} 6. Bb3 {[%clk 0:02:41]}  d6 {[%clk 0:02:53]} 7. exd6 {[%clk 0:02:42]}  Qxd6 {[%clk 0:02:52]} 8. O-O {[%clk 0:02:43]}  Bg4 {[%clk 0:02:52]} 9. Bxf7+ {[%clk 0:02:41]}  Kd8 {[%clk 0:02:46]} 10. h3 {[%clk 0:02:25]}  Bxf3 {[%clk 0:02:44]} 11. Qxf3 {[%clk 0:02:26]}  Ne5 {[%clk 0:02:45]} 12. Qf5 {[%clk 0:02:23]}  g6 {[%clk 0:02:39]} 13. Qe6 {[%clk 0:02:23]}  Nxf7 {[%clk 0:02:34]} 14. Qxf7 {[%clk 0:02:23]}  Bh6 {[%clk 0:02:35]} 15. d4 {[%clk 0:02:16]}  Bxc1 {[%clk 0:02:30]} 16. Rxc1 {[%clk 0:01:59]}  cxd4 {[%clk 0:02:22]} 17. Rd1 {[%clk 0:01:45]}  e5 {[%clk 0:02:05]} 18. cxd4 {[%clk 0:01:45]}  Rf8 {[%clk 0:02:01]} 19. Qxb7 {[%clk 0:01:42]}  Rb8 {[%clk 0:01:59]} 20. Qxa7 {[%clk 0:01:40]}  exd4 {[%clk 0:01:57]} 21. Nc3 {[%clk 0:01:37]}  Ra8 {[%clk 0:00:56]} 22. Qb7 {[%clk 0:01:26]}  Rb8 {[%clk 0:00:42]} 23. Qe4 {[%clk 0:01:17]}  Rf4 {[%clk 0:00:37]} 24. Qe2 {[%clk 0:01:17]}  Nd7 {[%clk 0:00:35]} 25. Nb5 {[%clk 0:01:10]}  Qc5 {[%clk 0:00:30]} 26. a4 {[%clk 0:01:06]}  Rb6 {[%clk 0:00:26]} 27. Rac1 {[%clk 0:01:03]}  Qb4 {[%clk 0:00:19]} 28. Rc8+ {[%clk 0:00:55]}  Kxc8 {[%clk 0:00:18]} 29. Qe8+ {[%clk 0:00:56]} 1-0


[Site "https://www.chess.com"]

[Event "Titled Tuesday Blitz January 17 Early 2023"]
[White "Harshavardhan G B"]
[Black "Janaszak, Dawid"]
[WhiteFideId "25059009"]
[BlackFideId "1119206"]
[WhiteElo "2408"]
[BlackElo "2316"]
[Result "1-0"]
[Round "09"]
[TimeControl "180+2"]
[Date "2023.01.17"]
[WhiteClock "0:00:18"]
[BlackClock "0:00:03"]

1. Nf3 {[%clk 0:03:00]}  d5 {[%clk 0:02:58]} 2. g3 {[%clk 0:03:00]}  Nf6 {[%clk 0:02:57]} 3. Bg2 {[%clk 0:03:00]}  c5 {[%clk 0:02:58]} 4. O-O {[%clk 0:02:59]}  e6 {[%clk 0:02:59]} 5. d3 {[%clk 0:03:00]}  Nc6 {[%clk 0:02:59]} 6. Nbd2 {[%clk 0:03:00]}  d4 {[%clk 0:02:57]} 7. a4 {[%clk 0:02:57]}  Be7 {[%clk 0:02:57]} 8. Nc4 {[%clk 0:02:57]}  O-O {[%clk 0:02:57]} 9. e4 {[%clk 0:02:57]}  dxe3 {[%clk 0:02:57]} 10. Bxe3 {[%clk 0:02:53]}  Nd5 {[%clk 0:02:55]} 11. Bd2 {[%clk 0:02:52]}  Bf6 {[%clk 0:02:52]} 12. c3 {[%clk 0:02:52]}  b6 {[%clk 0:02:49]} 13. Qe2 {[%clk 0:02:49]}  Bb7 {[%clk 0:02:49]} 14. h4 {[%clk 0:02:42]}  h6 {[%clk 0:02:48]} 15. h5 {[%clk 0:02:39]}  Re8 {[%clk 0:02:47]} 16. Nh2 {[%clk 0:02:39]}  Bg5 {[%clk 0:02:35]} 17. f4 {[%clk 0:02:37]}  Be7 {[%clk 0:02:33]} 18. Ng4 {[%clk 0:02:35]}  Qc7 {[%clk 0:02:25]} 19. Nge5 {[%clk 0:02:33]}  Nf6 {[%clk 0:02:16]} 20. Rf2 {[%clk 0:02:22]}  Na5 {[%clk 0:02:01]} 21. Nxa5 {[%clk 0:02:17]}  bxa5 {[%clk 0:02:01]} 22. c4 {[%clk 0:02:10]}  Rab8 {[%clk 0:01:44]} 23. Bc3 {[%clk 0:02:07]}  Bf8 {[%clk 0:01:34]} 24. g4 {[%clk 0:01:56]}  Nd7 {[%clk 0:01:28]} 25. g5 {[%clk 0:01:52]}  hxg5 {[%clk 0:01:23]} 26. Bxb7 {[%clk 0:01:31]}  Rxb7 {[%clk 0:01:16]} 27. Nxd7 {[%clk 0:01:30]}  Qxd7 {[%clk 0:01:14]} 28. fxg5 {[%clk 0:01:31]}  e5 {[%clk 0:01:12]} 29. Qe4 {[%clk 0:01:23]}  Rc7 {[%clk 0:00:57]} 30. Raf1 {[%clk 0:01:19]}  Qh3 {[%clk 0:00:56]} 31. g6 {[%clk 0:01:10]}  f6 {[%clk 0:00:44]} 32. Rh2 {[%clk 0:01:04]}  Qe6 {[%clk 0:00:40]} 33. Bxa5 {[%clk 0:00:56]}  Rd7 {[%clk 0:00:38]} 34. Bc3 {[%clk 0:00:54]}  Red8 {[%clk 0:00:35]} 35. Rf3 {[%clk 0:00:53]}  Rd4 {[%clk 0:00:30]} 36. Bxd4 {[%clk 0:00:50]}  Rxd4 {[%clk 0:00:29]} 37. Qe2 {[%clk 0:00:49]}  e4 {[%clk 0:00:28]} 38. Re3 {[%clk 0:00:47]}  Bd6 {[%clk 0:00:28]} 39. Rxe4 {[%clk 0:00:42]}  Bxh2+ {[%clk 0:00:19]} 40. Kxh2 {[%clk 0:00:43]}  Qd6+ {[%clk 0:00:10]} 41. Kg2 {[%clk 0:00:41]}  Qc6 {[%clk 0:00:07]} 42. Qf3 {[%clk 0:00:31]}  Rd8 {[%clk 0:00:06]} 43. Re7 {[%clk 0:00:30]}  Qb6 {[%clk 0:00:04]} 44. Qd5+ {[%clk 0:00:27]}  Kh8 {[%clk 0:00:03]} 45. b3 {[%clk 0:00:18]} 1-0


[Site "https://www.chess.com"]

[Event "Titled Tuesday Blitz January 17 Early 2023"]
[White "Melian, Juan Sebastian"]
[Black "Aradhya, Garg"]
[WhiteFideId "3706575"]
[BlackFideId "25006746"]
[WhiteElo "2293"]
[BlackElo "2284"]
[Result "1/2-1/2"]
[Round "09"]
[TimeControl "180+2"]
[Date "2023.01.17"]
[WhiteClock "0:00:04"]
[BlackClock "0:00:25"]

1. d4 {[%clk 0:02:52]}  d5 {[%clk 0:02:59]} 2. c4 {[%clk 0:02:53]}  c6 {[%clk 0:02:59]} 3. Nf3 {[%clk 0:02:46]}  Nf6 {[%clk 0:02:58]} 4. e3 {[%clk 0:02:32]}  Bf5 {[%clk 0:02:59]} 5. Bd3 {[%clk 0:02:25]}  Bxd3 {[%clk 0:02:58]} 6. Qxd3 {[%clk 0:02:26]}  e6 {[%clk 0:02:58]} 7. O-O {[%clk 0:02:26]}  Nbd7 {[%clk 0:02:58]} 8. Nc3 {[%clk 0:02:24]}  Bb4 {[%clk 0:02:58]} 9. Bd2 {[%clk 0:02:23]}  a5 {[%clk 0:02:59]} 10. a3 {[%clk 0:02:15]}  Be7 {[%clk 0:02:57]} 11. e4 {[%clk 0:02:16]}  Nc5 {[%clk 0:02:57]} 12. dxc5 {[%clk 0:02:15]}  dxe4 {[%clk 0:02:57]} 13. Qe3 {[%clk 0:01:28]}  exf3 {[%clk 0:02:56]} 14. gxf3 {[%clk 0:01:29]}  O-O {[%clk 0:02:49]} 15. Kh1 {[%clk 0:01:22]}  Bxc5 {[%clk 0:02:47]} 16. Qxc5 {[%clk 0:01:11]}  Qxd2 {[%clk 0:02:47]} 17. Rg1 {[%clk 0:01:12]}  Qd3 {[%clk 0:02:39]} 18. Rg3 {[%clk 0:00:59]}  Qf5 {[%clk 0:02:38]} 19. Qe3 {[%clk 0:00:55]}  Rad8 {[%clk 0:02:34]} 20. Rag1 {[%clk 0:00:55]}  g6 {[%clk 0:02:34]} 21. Rg5 {[%clk 0:00:26]}  Qc2 {[%clk 0:02:33]} 22. Qf4 {[%clk 0:00:23]}  Nd7 {[%clk 0:02:23]} 23. Ne4 {[%clk 0:00:10]}  Qxb2 {[%clk 0:02:22]} 24. Rh5 {[%clk 0:00:09]}  f5 {[%clk 0:02:14]} 25. Ng5 {[%clk 0:00:05]}  Qe5 {[%clk 0:02:09]} 26. Qh4 {[%clk 0:00:04]}  gxh5 {[%clk 0:01:47]} 27. Qxh5 {[%clk 0:00:05]}  Qg7 {[%clk 0:01:04]} 28. Nxe6 {[%clk 0:00:04]}  Qxg1+ {[%clk 0:01:04]} 29. Kxg1 {[%clk 0:00:05]}  Nf6 {[%clk 0:00:57]} 30. Qg5+ {[%clk 0:00:02]}  Kf7 {[%clk 0:00:56]} 31. Nxd8+ {[%clk 0:00:03]}  Rxd8 {[%clk 0:00:57]} 32. Qxf5 {[%clk 0:00:04]}  Rd4 {[%clk 0:00:47]} 33. c5 {[%clk 0:00:03]}  Rd5 {[%clk 0:00:46]} 34. Qc2 {[%clk 0:00:03]}  h5 {[%clk 0:00:44]} 35. f4 {[%clk 0:00:03]}  Nd7 {[%clk 0:00:43]} 36. Qh7+ {[%clk 0:00:02]}  Kf6 {[%clk 0:00:43]} 37. Qh6+ {[%clk 0:00:03]}  Kf7 {[%clk 0:00:41]} 38. Qh7+ {[%clk 0:00:02]}  Kf6 {[%clk 0:00:41]} 39. Qh6+ {[%clk 0:00:03]}  Kf7 {[%clk 0:00:41]} 40. Kg2 {[%clk 0:00:03]}  Nxc5 {[%clk 0:00:40]} 41. Qh7+ {[%clk 0:00:03]}  Kf6 {[%clk 0:00:40]} 42. Qh6+ {[%clk 0:00:03]}  Kf7 {[%clk 0:00:40]} 43. Qh7+ {[%clk 0:00:04]}  Kf6 {[%clk 0:00:40]} 44. f3 {[%clk 0:00:04]}  Ne6 {[%clk 0:00:33]} 45. Kg3 {[%clk 0:00:03]}  b5 {[%clk 0:00:31]} 46. Qh8+ {[%clk 0:00:02]}  Ng7 {[%clk 0:00:28]} 47. Qc8 {[%clk 0:00:03]}  Nf5+ {[%clk 0:00:27]} 48. Kf2 {[%clk 0:00:03]}  Rd6 {[%clk 0:00:26]} 49. Qf8+ {[%clk 0:00:03]}  Ke6 {[%clk 0:00:25]} 50. Qg8+ {[%clk 0:00:03]}  Kf6 {[%clk 0:00:25]} 51. Qf8+ {[%clk 0:00:04]}  Ke6 {[%clk 0:00:25]} 52. Qg8+ {[%clk 0:00:04]}  Kf6 {[%clk 0:00:25]} 53. Qf8+ {[%clk 0:00:04]} 1/2-1/2


[Site "https://www.chess.com"]

[Event "Titled Tuesday Blitz January 17 Early 2023"]
[White "Martin Duque, Jesus"]
[Black "Ashraf, Artin"]
[WhiteFideId "2208954"]
[BlackFideId "22514805"]
[WhiteElo "2386"]
[BlackElo "2314"]
[Result "0-1"]
[Round "09"]
[TimeControl "180+2"]
[Date "2023.01.17"]
[WhiteClock "0:00:40"]
[BlackClock "0:00:22"]

1. Nf3 {[%clk 0:02:25]}  c5 {[%clk 0:02:56]} 2. b3 {[%clk 0:02:21]}  d5 {[%clk 0:02:52]} 3. e3 {[%clk 0:02:20]}  a6 {[%clk 0:02:52]} 4. Bb2 {[%clk 0:02:18]}  Nc6 {[%clk 0:02:52]} 5. d4 {[%clk 0:02:18]}  cxd4 {[%clk 0:02:51]} 6. Nxd4 {[%clk 0:02:19]}  Nf6 {[%clk 0:02:37]} 7. g3 {[%clk 0:02:19]}  Bg4 {[%clk 0:02:34]} 8. Qd2 {[%clk 0:02:18]}  Nxd4 {[%clk 0:02:11]} 9. Qxd4 {[%clk 0:02:18]}  Bf3 {[%clk 0:02:12]} 10. Rg1 {[%clk 0:02:19]}  e6 {[%clk 0:02:11]} 11. Nd2 {[%clk 0:02:19]}  Bh5 {[%clk 0:02:10]} 12. g4 {[%clk 0:02:15]}  Bg6 {[%clk 0:02:10]} 13. Bd3 {[%clk 0:02:12]}  Rc8 {[%clk 0:02:07]} 14. g5 {[%clk 0:02:11]}  Bc5 {[%clk 0:01:58]} 15. Qa4+ {[%clk 0:02:08]}  Nd7 {[%clk 0:01:52]} 16. Bxg7 {[%clk 0:02:08]}  Rg8 {[%clk 0:01:52]} 17. Bf6 {[%clk 0:01:47]}  Qc7 {[%clk 0:01:43]} 18. h4 {[%clk 0:01:30]}  b5 {[%clk 0:01:17]} 19. Qxa6 {[%clk 0:01:28]}  Bxd3 {[%clk 0:01:16]} 20. cxd3 {[%clk 0:01:29]}  Nxf6 {[%clk 0:01:16]} 21. Qxb5+ {[%clk 0:01:30]}  Nd7 {[%clk 0:01:16]} 22. Rc1 {[%clk 0:01:30]}  Qb6 {[%clk 0:00:59]} 23. Qa4 {[%clk 0:01:24]}  Ke7 {[%clk 0:00:59]} 24. Ke2 {[%clk 0:01:09]}  Ra8 {[%clk 0:00:56]} 25. Qf4 {[%clk 0:00:58]}  Rxa2 {[%clk 0:00:48]} 26. Ra1 {[%clk 0:00:58]}  Bd6 {[%clk 0:00:43]} 27. Qf3 {[%clk 0:00:52]}  Rga8 {[%clk 0:00:34]} 28. Rad1 {[%clk 0:00:40]}  Qxb3 {[%clk 0:00:31]} 29. h5 {[%clk 0:00:41]}  Qc3 {[%clk 0:00:24]} 30. g6 {[%clk 0:00:40]}  Ne5 {[%clk 0:00:22]} 0-1


[Site "https://www.chess.com"]

[Event "Titled Tuesday Blitz January 17 Early 2023"]
[White "Tanenbaum, Zachary"]
[Black "Pein, Jonathan"]
[WhiteFideId "2060850"]
[BlackFideId "417092"]
[WhiteElo "2261"]
[BlackElo "2265"]
[Result "1-0"]
[Round "09"]
[TimeControl "180+2"]
[Date "2023.01.17"]
[WhiteClock "0:00:55"]
[BlackClock "0:00:14"]

1. e4 {[%clk 0:03:00]}  e5 {[%clk 0:03:00]} 2. Nf3 {[%clk 0:03:00]}  d6 {[%clk 0:03:00]} 3. d4 {[%clk 0:03:00]}  exd4 {[%clk 0:03:01]} 4. Nxd4 {[%clk 0:03:00]}  Nf6 {[%clk 0:03:02]} 5. Nc3 {[%clk 0:03:00]}  g6 {[%clk 0:03:03]} 6. Be3 {[%clk 0:02:56]}  Bg7 {[%clk 0:03:03]} 7. f3 {[%clk 0:02:55]}  O-O {[%clk 0:03:03]} 8. Qd2 {[%clk 0:02:56]}  Nc6 {[%clk 0:03:03]} 9. O-O-O {[%clk 0:02:53]}  Nxd4 {[%clk 0:03:04]} 10. Bxd4 {[%clk 0:02:54]}  Be6 {[%clk 0:03:04]} 11. h4 {[%clk 0:02:53]}  c5 {[%clk 0:03:05]} 12. Be3 {[%clk 0:02:51]}  Qa5 {[%clk 0:03:05]} 13. Bh6 {[%clk 0:02:47]}  Bxh6 {[%clk 0:02:42]} 14. Qxh6 {[%clk 0:02:46]}  Bxa2 {[%clk 0:02:42]} 15. Rxd6 {[%clk 0:01:35]}  Be6 {[%clk 0:02:41]} 16. e5 {[%clk 0:01:34]}  Qa1+ {[%clk 0:01:31]} 17. Kd2 {[%clk 0:01:14]}  Rfd8 {[%clk 0:01:30]} 18. exf6 {[%clk 0:01:11]}  Rxd6+ {[%clk 0:01:29]} 19. Bd3 {[%clk 0:01:12]}  Rxd3+ {[%clk 0:01:28]} 20. Kxd3 {[%clk 0:01:09]}  Bc4+ {[%clk 0:00:31]} 21. Ke3 {[%clk 0:00:56]}  Re8+ {[%clk 0:00:27]} 22. Kf2 {[%clk 0:00:56]}  Re2+ {[%clk 0:00:18]} 23. Nxe2 {[%clk 0:00:55]}  Qf1+ {[%clk 0:00:17]} 24. Rxf1 {[%clk 0:00:54]}  Bxe2 {[%clk 0:00:14]} 25. Qg7# {[%clk 0:00:55]} 1-0


[Site "https://www.chess.com"]